bitfinex/quotes_BTCUSD_20241002
["timestamp","ask_amount","ask_price","bid_price","bid_amount"]
[1727872946625,0.163009,61347.0,61344.0,0.03271]
[1727872946868,0.163005,61348.0,61344.0,0.03271]
[1727872947141,0.163007,61347.0,61346.0,0.03271]
[1727872947379,0.169007,61347.0,61346.0,0.03271]
[1727872947613,0.169007,61347.0,61346.0,0.04537639]
[1727872948081,0.006,61347.0,61346.0,0.04537639]
[1727872948305,0.169007,61347.0,61346.0,0.04537639]
[1727872949794,0.169007,61347.0,61346.0,0.01266639]
[1727872950041,0.169007,61347.0,61346.0,0.022]
[1727872950275,0.247107,61347.0,61346.0,0.03466639]
[1727872951053,0.247107,61347.0,61346.0,0.022]
[1727872951533,0.169007,61347.0,61346.0,0.011]
[1727872952549,0.163014,61345.0,61342.0,0.163018]
[1727872953044,0.332016,61347.0,61343.0,0.163016]
[1727872953045,0.495024,61347.0,61343.0,0.163016]
[1727872953295,0.006,61347.0,61343.0,0.326032]
[1727872953545,0.495023,61347.0,61343.0,0.163017]
[1727872953795,0.006,61347.0,61345.0,0.163011]
[1727872954287,0.169008,61347.0,61344.0,0.163013]
[1727872954498,0.169008,61347.0,61343.0,0.03871]
[1727872954499,0.163013,61345.0,61343.0,0.03871]
[1727872954704,0.51626248,61346.0,61343.0,0.03871]
[1727872954909,0.163015,61344.0,61343.0,0.03871]
[1727872955538,0.163012,61345.0,61343.0,0.03871]
[1727872955768,0.006,61347.0,61343.0,0.03871]
[1727872956003,0.489033,61346.0,61345.0,0.006]
[1727872956218,0.326024,61346.0,61342.0,0.03271]
[1727872956433,0.006,61347.0,61345.0,0.006]
[1727872956647,0.163009,61346.0,61345.0,0.006]
[1727872956887,0.163009,61346.0,61342.0,0.03271]
[1727872956888,0.163017,61343.0,61342.0,0.03271]
[1727872957101,0.163017,61343.0,61341.0,0.001636]
[1727872957102,0.16302,61342.0,61341.0,0.001636]
[1727872957355,0.35326248,61342.0,61341.0,0.001636]
[1727872958222,0.16302,61342.0,61341.0,0.001636]
[1727872958473,0.163016,61344.0,61341.0,0.001636]
[1727872958802,0.32602,61346.0,61341.0,0.01432642]
[1727872959043,0.163019,61343.0,61341.0,0.001636]
[1727872959239,0.163019,61343.0,61342.0,0.01268862]
[1727872959445,0.163015,61344.0,61342.0,0.01268862]
[1727872959575,0.163015,61344.0,61341.0,0.012636]
[1727872959776,0.163018,61343.0,61341.0,0.021636]
[1727872960008,0.16302,61342.0,61341.0,0.001636]
[1727872960380,0.18858505,61342.0,61341.0,0.011636]
[1727872960769,0.16302,61342.0,61341.0,0.001636]
[1727872960963,0.16302,61342.0,61341.0,0.011636]
[1727872961166,0.16302,61342.0,61341.0,0.022636]
[1727872962738,0.16302,61342.0,61341.0,0.012636]
[1727872963316,0.16302,61342.0,61341.0,0.023636]
[1727872963520,0.16302,61342.0,61341.0,0.012636]
[1727872963944,0.16302,61342.0,61341.0,0.004636]
[1727872964140,0.16302,61342.0,61341.0,0.006636]
[1727872966080,0.15802,61342.0,61341.0,0.006636]
[1727872968786,0.15802,61342.0,61341.0,0.01934029]
[1727872969021,0.15802,61342.0,61341.0,0.006636]
[1727872971392,0.16002,61342.0,61341.0,0.006636]
[1727872971862,0.15802,61342.0,61341.0,0.006636]
[1727872973595,0.52463984,61342.0,61341.0,0.006636]
[1727872973821,0.52463984,61342.0,61341.0,0.003636]
[1727872974043,1.84347784,61342.0,61341.0,0.006636]
[1727872974267,1.81519584,61342.0,61341.0,0.006636]
[1727872974487,1.76820384,61342.0,61341.0,0.004636]
[1727872974693,1.626484,61342.0,61341.0,0.004636]
[1727872974904,0.002,61335.0,61325.0,0.24486798]
[1727872975129,0.65860448,61326.0,61325.0,0.24486798]
[1727872975378,0.65860448,61326.0,61309.0,0.001636]
[1727872975379,0.163089,61316.0,61309.0,0.001636]
[1727872975583,0.35333148,61316.0,61309.0,0.001636]
[1727872975793,0.163105,61310.0,61309.0,0.001636]
[1727872976004,0.35334748,61310.0,61309.0,0.001636]
[1727872976864,0.37892768,61310.0,61309.0,0.001636]
[1727872977523,0.37992768,61310.0,61309.0,0.001636]
[1727872978001,0.38592768,61310.0,61309.0,0.001636]
[1727872978855,0.38692768,61310.0,61309.0,0.001636]
[1727872979930,0.38592768,61310.0,61309.0,0.001636]
[1727872980144,0.38592768,61310.0,61309.0,0.004636]
[1727872980361,0.38592768,61310.0,61309.0,0.001636]
[1727872980584,0.1956852,61310.0,61309.0,0.001636]
[1727872980795,0.38592768,61310.0,61309.0,0.001636]
[1727872981411,0.38692768,61310.0,61309.0,0.001636]
[1727872981633,0.52367835,61310.0,61309.0,0.001636]
[1727872981887,1.36895635,61310.0,61309.0,0.001636]
[1727872982124,1.37095635,61310.0,61309.0,0.001636]
[1727872982372,1.36895635,61310.0,61309.0,0.001636]
[1727872983320,1.37095635,61310.0,61309.0,0.001636]
[1727872983899,0.265118,61305.0,61304.0,0.001636]
[1727872984125,0.45536048,61305.0,61304.0,0.001636]
[1727872984392,0.45336048,61305.0,61304.0,0.001636]
[1727872984791,0.45536048,61305.0,61304.0,0.001636]
[1727872985012,0.45336048,61305.0,61304.0,0.001636]
[1727872985433,0.45536048,61305.0,61304.0,0.001636]
[1727872986064,0.45336048,61305.0,61304.0,0.001636]
[1727872986415,0.263118,61305.0,61304.0,0.001636]
[1727872986618,0.45336048,61305.0,61304.0,0.001636]
[1727872987035,0.45636048,61305.0,61304.0,0.001636]
[1727872987435,0.47894253,61305.0,61304.0,0.001636]
[1727872987667,0.48394253,61305.0,61304.0,0.001636]
[1727872987870,0.48394253,61305.0,61304.0,0.002636]
[1727872988073,0.47894253,61305.0,61304.0,0.002636]
[1727872988279,0.47894253,61305.0,61304.0,0.003636]
[1727872988906,0.18870005,61305.0,61304.0,0.003636]
[1727872989316,0.18870005,61305.0,61304.0,0.01578433]
[1727872992155,0.02558205,61305.0,61304.0,0.21161533]
[1727872992372,0.163109,61309.0,61306.0,0.163116]
[1727872992845,0.332213,61310.0,61307.0,0.01214187]
[1727872993087,0.006,61310.0,61304.0,0.035346]
[1727872993327,0.001,61305.0,61304.0,0.045346]
[1727872993540,0.001,61305.0,61304.0,0.208467]
[1727872993763,0.163114,61307.0,61304.0,0.198467]
[1727872993972,0.163114,61307.0,61304.0,0.197467]
[1727872994395,0.163109,61309.0,61305.0,0.163118]
[1727872994647,0.35336048,61305.0,61304.0,0.001636]
[1727872994869,0.35336048,61305.0,61304.0,0.007636]
[1727872994870,0.35536048,61305.0,61304.0,0.007636]
[1727872995097,0.45336048,61305.0,61304.0,0.007636]
[1727872995739,0.45336048,61305.0,61304.0,0.015636]
[1727872995948,0.45336048,61305.0,61304.0,0.009636]
[1727872995949,0.47894259,61305.0,61304.0,0.009636]
[1727872996164,0.47894259,61305.0,61304.0,0.001636]
[1727872996591,0.48194259,61305.0,61304.0,0.001636]
[1727872997040,0.47894259,61305.0,61304.0,0.001636]
[1727872997272,0.45636048,61305.0,61304.0,0.001636]
[1727872997908,0.45836048,61305.0,61304.0,0.001636]
[1727872998118,0.45636048,61305.0,61304.0,0.001636]
[1727872998367,0.269118,61305.0,61304.0,0.001636]
[1727872999001,0.45936048,61305.0,61304.0,0.001636]
[1727872999222,0.45636048,61305.0,61304.0,0.001636]
[1727872999440,0.45836048,61305.0,61304.0,0.001636]
[1727873000050,0.48194246,61305.0,61304.0,0.001636]
[1727873000267,0.48494246,61305.0,61304.0,0.001636]
[1727873000729,0.63190421,61305.0,61304.0,0.001636]
[1727873000961,0.48494246,61305.0,61304.0,0.001636]
[1727873002333,0.29469998,61305.0,61304.0,0.001636]
[1727873002565,0.19469998,61305.0,61304.0,0.001636]
[1727873002798,0.006,61305.0,61304.0,0.001636]
[1727873003019,0.006,61305.0,61304.0,0.09020375]
[1727873003229,0.006,61305.0,61304.0,0.078736]
[1727873003441,0.006,61305.0,61304.0,0.09020375]
[1727873003655,0.003,61305.0,61304.0,0.09020375]
[1727873003865,0.163116,61306.0,61304.0,0.09020375]
[1727873004080,0.163116,61306.0,61304.0,0.09220375]
[1727873004294,0.163114,61307.0,61304.0,0.25532275]
[1727873004721,0.163114,61307.0,61304.0,0.09220375]
[1727873004949,0.006,61310.0,61304.0,0.09220375]
[1727873004950,0.006,61310.0,61304.0,0.41644275]
[1727873005161,0.006,61310.0,61304.0,0.09320375]
[1727873005377,0.163118,61305.0,61304.0,0.09220375]
[1727873006085,0.35336048,61305.0,61304.0,0.09220375]
[1727873006301,0.35336048,61305.0,61304.0,0.09020375]
[1727873007830,0.35336048,61305.0,61304.0,0.09220375]
[1727873009349,0.35336048,61305.0,61304.0,0.09420375]
[1727873009557,0.163118,61305.0,61304.0,0.09420375]
[1727873010219,0.18869756,61305.0,61304.0,0.09420375]
[1727873013502,0.02557956,61305.0,61304.0,0.09420375]
[1727873013745,0.02557956,61305.0,61304.0,0.25732475]
[1727873014177,0.16393,61308.0,61305.0,0.163118]
[1727873014381,0.000819,61308.0,61305.0,0.163118]
[1727873014590,0.000819,61308.0,61306.0,0.01146051]
[1727873015007,0.000819,61308.0,61305.0,0.163118]
[1727873015248,0.000819,61308.0,61307.0,0.0114587]
[1727873015453,0.000819,61308.0,61306.0,0.17457551]
[1727873015666,0.000819,61308.0,61307.0,0.1745717]
[1727873016116,0.000819,61308.0,61307.0,0.3791717]
[1727873016565,0.000819,61308.0,61307.0,0.3811717]
[1727873017003,0.000819,61308.0,61307.0,0.3791717]
[1727873017225,0.000819,61308.0,61307.0,0.3831717]
[1727873017974,0.000819,61308.0,61307.0,0.3861717]
[1727873018908,0.000819,61308.0,61307.0,0.2230587]
[1727873019144,0.163929,61308.0,61307.0,0.2230587]
[1727873019390,0.163929,61308.0,61307.0,0.0184587]
[1727873019391,0.22701305,61308.0,61307.0,0.0184587]
[1727873019641,1.98786505,61308.0,61307.0,0.0184587]
[1727873019898,1.98786505,61308.0,61304.0,0.001636]
[1727873019899,0.45536048,61305.0,61304.0,0.001636]
[1727873020556,1.15536048,61305.0,61304.0,0.001636]
[1727873020785,1.1809449,61305.0,61304.0,0.001636]
[1727873021704,1.1809449,61305.0,61304.0,0.002636]
[1727873022820,1.32804576,61305.0,61304.0,0.003636]
[1727873023038,1.30246134,61305.0,61304.0,0.003636]
[1727873026430,1.3280457,61305.0,61304.0,0.003636]
[1727873027059,1.18494484,61305.0,61304.0,0.003636]
[1727873028674,0.53557648,61299.0,61298.0,0.001636]
[1727873029160,1.51998348,61299.0,61298.0,0.001636]
[1727873029707,0.263177,61283.0,61282.0,0.001636]
[1727873029960,0.53361948,61283.0,61282.0,0.001636]
[1727873030445,0.55921148,61283.0,61282.0,0.001636]
[1727873030659,0.69461223,61283.0,61282.0,0.001636]
[1727873030865,0.56121148,61283.0,61282.0,0.001636]
[1727873031494,1.65435848,61283.0,61282.0,0.001636]
[1727873031722,1.65435848,61283.0,61270.0,0.24486798]
[1727873031723,0.265193,61277.0,61271.0,0.24486798]
[1727873031934,2.07759548,61277.0,61271.0,0.24486798]
[1727873032139,2.05682348,61277.0,61271.0,0.24486798]
[1727873032355,2.01493348,61277.0,61271.0,0.24486798]
[1727873032566,2.01493348,61277.0,61262.0,0.001636]
[1727873032567,1.66091348,61277.0,61262.0,0.001636]
[1727873033231,0.64182348,61277.0,61276.0,0.002636]
[1727873033448,0.46743548,61277.0,61276.0,0.002636]
[1727873033658,1.16743548,61277.0,61276.0,0.002636]
[1727873033900,1.17643548,61277.0,61276.0,0.002636]
[1727873034368,1.16743548,61277.0,61276.0,0.002636]
[1727873034580,1.82072548,61277.0,61276.0,0.002636]
[1727873034790,1.60071548,61277.0,61276.0,0.002636]
[1727873035046,1.55882548,61277.0,61276.0,0.002636]
[1727873035285,0.47943548,61277.0,61276.0,0.002636]
[1727873036181,0.50503242,61277.0,61276.0,0.002636]
[1727873037403,0.47943548,61277.0,61276.0,0.002636]
[1727873040560,0.50503208,61277.0,61276.0,0.002636]
[1727873042263,0.65364779,61277.0,61276.0,0.002636]
[1727873042700,0.65364779,61277.0,61263.0,0.32166798]
[1727873042701,0.35346948,61264.0,61263.0,0.24486798]
[1727873042910,0.35346948,61264.0,61262.0,0.001636]
[1727873042911,0.26523,61263.0,61262.0,0.001636]
[1727873043371,1.07540195,61263.0,61262.0,0.001636]
[1727873044007,0.83847795,61263.0,61262.0,0.001636]
[1727873044482,0.83847795,61263.0,61251.0,0.24486798]
[1727873044483,0.35350148,61252.0,61251.0,0.24486798]
[1727873045184,0.16327,61248.0,61246.0,0.001636]
[1727873046462,0.1888742,61248.0,61246.0,0.001636]
[1727873047720,0.1888742,61248.0,61247.0,0.002638]
[1727873048160,0.38011668,61248.0,61247.0,0.002638]
[1727873048371,0.41667128,61248.0,61247.0,0.002638]
[1727873050051,0.51667128,61248.0,61247.0,0.002638]
[1727873052548,0.51767128,61248.0,61247.0,0.002638]
[1727873052767,0.52267128,61248.0,61247.0,0.001638]
[1727873053432,0.52767128,61248.0,61247.0,0.001638]
[1727873053662,0.52267128,61248.0,61247.0,0.001638]
[1727873054103,0.52767128,61248.0,61247.0,0.001638]
[1727873054351,0.77253926,61248.0,61247.0,0.001638]
[1727873054571,1.78812008,61248.0,61247.0,0.001638]
[1727873054844,1.78812008,61248.0,61242.0,0.001636]
[1727873054845,0.265278,61245.0,61242.0,0.001636]
[1727873055061,2.161196,61245.0,61242.0,0.001636]
[1727873055280,2.243346,61245.0,61242.0,0.001636]
[1727873055487,2.124006,61245.0,61242.0,0.001636]
[1727873056141,2.313719,61245.0,61242.0,0.001636]
[1727873056353,2.47860082,61245.0,61242.0,0.001636]
[1727873056563,1.8088934,61245.0,61242.0,0.001636]
[1727873056771,1.66629882,61245.0,61242.0,0.001636]
[1727873056995,1.19281582,61245.0,61242.0,0.001636]
[1727873057203,1.19381582,61245.0,61242.0,0.001636]
[1727873057878,1.21942507,61245.0,61242.0,0.001636]
[1727873058093,1.19381582,61245.0,61242.0,0.001636]
[1727873058754,1.19681582,61245.0,61242.0,0.001636]
[1727873058977,1.27371582,61245.0,61242.0,0.001636]
[1727873059212,0.45552548,61243.0,61242.0,0.001636]
[1727873059488,1.70015048,61243.0,61242.0,0.001636]
[1727873059722,0.88253848,61243.0,61242.0,0.001636]
[1727873059969,0.45352548,61243.0,61242.0,0.001636]
[1727873060787,0.163283,61243.0,61242.0,0.001636]
[1727873060963,0.1888905,61243.0,61242.0,0.001636]
[1727873061207,0.1888905,61243.0,61242.0,0.17675204]
[1727873061208,0.0256075,61243.0,61242.0,0.17675204]
[1727873061475,0.0256075,61243.0,61242.0,0.286922]
[1727873061740,0.0256075,61243.0,61242.0,0.38154154]
[1727873061991,0.0326075,61243.0,61242.0,0.38154154]
[1727873062258,0.007,61243.0,61242.0,0.41425154]
[1727873062546,0.001,61243.0,61242.0,0.41425154]
[1727873062754,0.001,61243.0,61242.0,0.25096554]
[1727873063010,0.57137398,61255.0,61253.0,0.163255]
[1727873063011,0.24486798,61255.0,61253.0,0.163255]
[1727873063275,0.24486798,61255.0,61252.0,0.0804]
[1727873063276,0.40812098,61255.0,61252.0,0.0804]
[1727873063518,0.163245,61258.0,61254.0,0.17504458]
[1727873063785,0.163246,61257.0,61254.0,0.163253]
[1727873064025,0.19024248,61264.0,61255.0,0.13638925]
[1727873064261,0.326481,61260.0,61255.0,0.13638925]
[1727873064496,0.163249,61256.0,61255.0,0.13638925]
[1727873064725,0.35349148,61256.0,61255.0,0.1246]
[1727873064979,0.35349148,61256.0,61255.0,0.13636749]
[1727873065466,0.3790921,61256.0,61255.0,0.13636749]
[1727873066390,0.35349148,61256.0,61255.0,0.13636749]
[1727873066604,0.35449148,61256.0,61255.0,0.13636749]
[1727873066822,0.35349148,61256.0,61255.0,0.13936749]
[1727873067347,0.35349148,61256.0,61255.0,0.13636749]
[1727873067575,0.35349148,61256.0,61255.0,0.13936749]
[1727873067829,0.35349148,61256.0,61255.0,0.1276]
[1727873068297,0.35349148,61256.0,61255.0,0.13936441]
[1727873069485,0.37909203,61256.0,61255.0,0.13936441]
[1727873069906,0.37909203,61256.0,61255.0,0.13636441]
[1727873070367,0.37909203,61256.0,61255.0,0.1246]
[1727873070590,0.163257,61253.0,61252.0,0.0804]
[1727873070851,0.163267,61249.0,61248.0,0.03271]
[1727873071039,0.35350948,61249.0,61248.0,0.03271]
[1727873071486,0.163275,61246.0,61245.0,0.0773]
[1727873073042,0.164275,61246.0,61245.0,0.0773]
[1727873073711,0.164275,61246.0,61242.0,0.001636]
[1727873073712,0.163283,61243.0,61242.0,0.001636]
[1727873073944,0.35352548,61243.0,61242.0,0.001636]
[1727873075337,0.35452548,61243.0,61242.0,0.001636]
[1727873076236,0.38013165,61243.0,61242.0,0.01341159]
[1727873076456,0.38013165,61243.0,61242.0,0.001636]
[1727873076675,0.38113165,61243.0,61242.0,0.01541159]
[1727873076859,0.38113165,61243.0,61242.0,0.003636]
[1727873077289,0.35552548,61243.0,61242.0,0.003636]
[1727873078225,0.165283,61243.0,61242.0,0.003636]
[1727873078658,0.165283,61243.0,61242.0,0.01541427]
[1727873078876,0.002,61243.0,61242.0,0.003636]
[1727873079084,0.002,61243.0,61242.0,0.01541427]
[1727873079306,0.165283,61243.0,61242.0,0.01541427]
[1727873080184,0.1908889,61243.0,61242.0,0.01541427]
[1727873081095,0.0276059,61243.0,61242.0,0.01541427]
[1727873081342,0.0276059,61243.0,61242.0,0.17870027]
[1727873081579,0.0276059,61243.0,61242.0,0.01541427]
[1727873082712,0.0276059,61243.0,61242.0,0.17870027]
[1727873082945,0.0276059,61243.0,61242.0,0.01541427]
[1727873083631,0.1908889,61243.0,61242.0,0.01541427]
[1727873084065,0.0276059,61243.0,61242.0,0.01541427]
[1727873084505,0.1908889,61243.0,61242.0,0.01541427]
[1727873086091,0.48463832,61243.0,61242.0,0.01541427]
[1727873086391,0.48463832,61243.0,61242.0,0.003636]
[1727873086622,0.48663832,61243.0,61242.0,0.003636]
[1727873086839,0.70859242,61243.0,61242.0,0.003636]
[1727873087279,0.70659242,61243.0,61242.0,0.003636]
[1727873087739,0.70559242,61243.0,61242.0,0.001636]
[1727873087953,0.70659242,61243.0,61242.0,0.001636]
[1727873088397,0.71059242,61243.0,61242.0,0.001636]
[1727873088620,0.56103242,61243.0,61242.0,0.001636]
[1727873088845,0.55903242,61243.0,61242.0,0.001636]
[1727873089064,0.57003242,61243.0,61242.0,0.001636]
[1727873089291,0.56803242,61243.0,61242.0,0.001636]
[1727873089538,0.46452548,61243.0,61242.0,0.001636]
[1727873089755,0.46252548,61243.0,61242.0,0.001636]
[1727873090228,0.4971338,61243.0,61242.0,0.001636]
[1727873090674,0.4971338,61243.0,61242.0,0.01702239]
[1727873090899,0.4881338,61243.0,61242.0,0.001636]
[1727873091122,0.4901338,61243.0,61242.0,0.001636]
[1727873091336,0.60454098,61243.0,61242.0,0.001636]
[1727873091595,0.4811338,61243.0,61242.0,0.001636]
[1727873092262,0.4791338,61243.0,61242.0,0.001636]
[1727873092485,0.4831338,61243.0,61242.0,0.001636]
[1727873092936,0.45752548,61243.0,61242.0,0.001636]
[1727873093863,0.46152548,61243.0,61242.0,0.001636]
[1727873094529,0.57307183,61243.0,61242.0,0.001636]
[1727873095662,0.57507183,61243.0,61242.0,0.001636]
[1727873096323,0.60068165,61243.0,61242.0,0.001636]
[1727873096991,0.59868165,61243.0,61242.0,0.001636]
[1727873097256,0.57307183,61243.0,61242.0,0.001636]
[1727873097467,1.63244983,61243.0,61242.0,0.001636]
[1727873097685,1.25864683,61243.0,61242.0,0.001636]
[1727873097944,1.26146683,61243.0,61242.0,0.001636]
[1727873100139,1.28707776,61243.0,61242.0,0.001636]
[1727873100380,0.45555248,61233.0,61232.0,0.146783]
[1727873100608,0.1,61227.0,61223.0,0.24486798]
[1727873100825,0.45357648,61224.0,61223.0,0.24486798]
[1727873101077,0.45557648,61224.0,61223.0,0.24486798]
[1727873101319,0.165342,61221.0,61216.0,0.24486798]
[1727873101777,0.163342,61221.0,61216.0,0.24486798]
[1727873102461,0.163342,61221.0,61219.0,0.0829]
[1727873102462,0.40820998,61221.0,61219.0,0.0829]
[1727873102689,0.35658448,61221.0,61219.0,0.0829]
[1727873104063,0.35858448,61221.0,61219.0,0.0829]
[1727873104292,0.35558448,61221.0,61219.0,0.0829]
[1727873104523,0.35758448,61221.0,61219.0,0.0829]
[1727873104998,0.167342,61221.0,61219.0,0.0829]
[1727873105603,0.19295755,61221.0,61219.0,0.0829]
[1727873105803,0.44515729,61221.0,61219.0,0.0829]
[1727873106001,0.44515729,61221.0,61218.0,0.0962]
[1727873106002,0.37920003,61221.0,61218.0,0.0962]
[1727873106205,0.37920003,61221.0,61214.0,0.083338]
[1727873106434,0.38120003,61221.0,61214.0,0.083338]
[1727873106839,0.37920003,61221.0,61214.0,0.083338]
[1727873107239,0.38120003,61221.0,61214.0,0.083338]
[1727873107664,0.38320003,61221.0,61214.0,0.083338]
[1727873108427,0.38120003,61221.0,61214.0,0.083338]
[1727873108660,0.38320003,61221.0,61214.0,0.083338]
[1727873112819,0.35758448,61221.0,61214.0,0.083338]
[1727873113244,0.167342,61221.0,61214.0,0.083338]
[1727873113857,0.167342,61221.0,61220.0,0.095838]
[1727873114313,0.167342,61221.0,61220.0,0.001638]
[1727873115440,0.21466766,61221.0,61220.0,0.001638]
[1727873115668,0.21666766,61221.0,61220.0,0.001638]
[1727873115876,0.21466766,61221.0,61220.0,0.001638]
[1727873116129,0.24028519,61221.0,61220.0,0.001638]
[1727873116770,0.34028519,61221.0,61220.0,0.001638]
[1727873117188,0.31466766,61221.0,61220.0,0.001638]
[1727873118000,0.267342,61221.0,61220.0,0.001638]
[1727873118468,0.267342,61221.0,61214.0,0.001638]
[1727873118469,0.163358,61215.0,61214.0,0.001638]
[1727873118883,0.163358,61215.0,61214.0,0.02516477]
[1727873119317,0.18897617,61215.0,61214.0,0.02516477]
[1727873119532,0.18897617,61215.0,61214.0,0.001638]
[1727873121217,0.18897617,61215.0,61214.0,0.084438]
[1727873121636,0.18897617,61215.0,61214.0,0.10796477]
[1727873122028,0.18897617,61215.0,61214.0,0.084438]
[1727873122861,0.18897617,61215.0,61214.0,0.001638]
[1727873124541,0.163358,61215.0,61214.0,0.001638]
[1727873124745,0.31283585,61215.0,61214.0,0.001638]
[1727873125163,0.31083585,61215.0,61214.0,0.001638]
[1727873125375,0.263358,61215.0,61214.0,0.001638]
[1727873126924,1.37854,61215.0,61214.0,0.001638]
[1727873127412,1.38154,61215.0,61214.0,0.001638]
[1727873127629,1.4071623,61215.0,61214.0,0.001638]
[1727873128083,1.4091623,61215.0,61214.0,0.001638]
[1727873128345,1.0009803,61215.0,61214.0,0.001638]
[1727873128770,0.9909803,61215.0,61214.0,0.001638]
[1727873129061,0.9999803,61215.0,61214.0,0.001638]
[1727873129287,1.0109803,61215.0,61214.0,0.001638]
[1727873129508,1.0019803,61215.0,61214.0,0.001638]
[1727873129712,0.9909803,61215.0,61214.0,0.001638]
[1727873129916,1.0159803,61215.0,61214.0,0.001638]
[1727873130171,1.18086212,61215.0,61214.0,0.001638]
[1727873130609,0.48086212,61215.0,61214.0,0.001638]
[1727873130814,0.82773612,61215.0,61214.0,0.001638]
[1727873131698,1.52773612,61215.0,61214.0,0.001638]
[1727873132448,1.52773612,61215.0,61214.0,0.002138]
[1727873132646,1.52773612,61215.0,61198.0,0.0766]
[1727873132647,0.263393,61202.0,61198.0,0.0766]
[1727873132877,0.45363548,61202.0,61198.0,0.0766]
[1727873133111,0.45363548,61202.0,61201.0,0.01944177]
[1727873133332,1.22917946,61202.0,61201.0,0.0041594]
[1727873133513,0.96475114,61202.0,61201.0,0.0041594]
[1727873133998,1.66475114,61202.0,61201.0,0.0041594]
[1727873134418,1.42940814,61202.0,61201.0,0.0041594]
[1727873135060,1.15363548,61202.0,61201.0,0.0041594]
[1727873135311,0.263393,61202.0,61201.0,0.0824594]
[1727873136025,0.272393,61202.0,61201.0,0.0824594]
[1727873136231,0.278393,61202.0,61201.0,0.0824594]
[1727873136438,0.30601693,61202.0,61201.0,0.0824594]
[1727873136641,0.20001693,61202.0,61201.0,0.0824594]
[1727873136811,0.02562393,61202.0,61201.0,0.0824594]
[1727873137019,0.02962393,61202.0,61201.0,0.0824594]
[1727873137285,0.02962393,61202.0,61201.0,0.09778376]
[1727873137490,0.02762393,61202.0,61201.0,0.26117976]
[1727873137697,0.02862393,61202.0,61201.0,0.26117976]
[1727873138549,0.02862393,61202.0,61201.0,0.38498976]
[1727873139164,0.02662393,61202.0,61201.0,0.38498976]
[1727873139370,0.02562393,61202.0,61201.0,0.38498976]
[1727873139809,0.02662393,61202.0,61201.0,0.38498976]
[1727873140016,0.57160798,61211.0,61203.0,0.03271]
[1727873140017,0.24486798,61211.0,61203.0,0.03271]
[1727873140220,0.24486798,61211.0,61208.0,0.331176]
[1727873140427,0.02561966,61214.0,61208.0,0.1678]
[1727873140639,0.02561966,61214.0,61213.0,0.163363]
[1727873140852,0.02561966,61214.0,61213.0,0.331163]
[1727873141075,0.02561966,61214.0,61213.0,0.34643197]
[1727873142205,0.02561966,61214.0,61213.0,0.18306897]
[1727873142458,0.18898066,61214.0,61213.0,0.18306897]
[1727873142679,0.37922314,61214.0,61213.0,0.18306897]
[1727873143106,0.35360348,61214.0,61213.0,0.1678]
[1727873143326,0.35560348,61214.0,61213.0,0.1678]
[1727873143536,0.35460348,61214.0,61213.0,0.18306897]
[1727873143791,0.35460348,61214.0,61213.0,0.1678]
[1727873143792,0.164361,61214.0,61213.0,0.1678]
[1727873144017,0.164361,61214.0,61213.0,0.18306897]
[1727873144018,0.001,61214.0,61213.0,0.18306897]
[1727873144237,0.326706,61218.0,61213.0,0.18306897]
[1727873144462,0.04887389,61218.0,61213.0,0.18306897]
[1727873144675,0.163354,61217.0,61214.0,0.16336]
[1727873144899,0.163354,61217.0,61213.0,0.34642997]
[1727873145107,0.163354,61217.0,61215.0,0.01526414]
[1727873145327,0.163354,61217.0,61214.0,0.01526655]
[1727873145544,0.163358,61215.0,61213.0,0.1678]
[1727873145770,0.163361,61214.0,61213.0,0.1678]
[1727873146205,0.163361,61214.0,61213.0,0.169438]
[1727873146430,0.21223489,61214.0,61213.0,0.169438]
[1727873147335,0.04887389,61214.0,61213.0,0.169438]
[1727873147599,0.04887389,61214.0,61213.0,0.332801]
[1727873148483,0.04887389,61215.0,61214.0,0.163361]
[1727873148932,0.04969289,61217.0,61213.0,0.496164]
[1727873149163,0.000819,61217.0,61215.0,0.163357]
[1727873149595,0.000819,61217.0,61216.0,0.163355]
[1727873149596,0.0264348,61217.0,61216.0,0.163355]
[1727873150297,0.0264348,61217.0,61216.0,0.328955]
[1727873152824,0.0264348,61217.0,61216.0,0.333955]
[1727873153707,0.1897878,61217.0,61216.0,0.1706]
[1727873154163,0.38003028,61217.0,61216.0,0.18581506]
[1727873154601,0.38003028,61217.0,61216.0,0.1706]
[1727873154854,0.35441448,61217.0,61216.0,0.18581357]
[1727873155281,0.164172,61217.0,61216.0,0.18581357]
[1727873155930,0.164172,61217.0,61216.0,0.18281357]
[1727873156174,0.000819,61217.0,61216.0,0.18181357]
[1727873156393,0.000819,61217.0,61216.0,0.34516857]
[1727873160528,0.000819,61217.0,61216.0,0.18181357]
[1727873160996,0.164172,61217.0,61216.0,0.18181357]
[1727873161457,0.164172,61217.0,61216.0,0.001]
[1727873161956,0.164172,61217.0,61216.0,0.01620707]
[1727873162173,0.164172,61217.0,61216.0,0.001]
[1727873165216,0.163361,61214.0,61213.0,0.001638]
[1727873165447,0.35560348,61214.0,61213.0,0.001638]
[1727873165667,0.35360348,61214.0,61213.0,0.001638]
[1727873165856,0.47148153,61214.0,61213.0,0.001638]
[1727873166079,0.4971016,61214.0,61213.0,0.001638]
[1727873166539,0.5011016,61214.0,61213.0,0.001638]
[1727873166754,0.5041016,61214.0,61213.0,0.001638]
[1727873167221,0.47848153,61214.0,61213.0,0.001638]
[1727873168611,0.36260348,61214.0,61213.0,0.001638]
[1727873168835,0.36060348,61214.0,61213.0,0.001638]
[1727873169072,0.170361,61214.0,61213.0,0.001638]
[1727873170448,0.19598042,61214.0,61213.0,0.001638]
[1727873170905,0.03261942,61214.0,61213.0,0.258001]
[1727873171352,0.03261942,61214.0,61213.0,0.27650557]
[1727873171560,0.03261942,61214.0,61213.0,0.27650548]
[1727873171778,0.02961942,61214.0,61213.0,0.30921548]
[1727873171995,0.02961942,61214.0,61213.0,0.38791548]
[1727873172206,0.03261942,61214.0,61213.0,0.38464853]
[1727873172634,0.02561942,61214.0,61213.0,0.38464853]
[1727873172857,0.02561942,61214.0,61213.0,0.38564853]
[1727873173072,0.02661942,61214.0,61213.0,0.39164853]
[1727873173286,0.02661942,61214.0,61213.0,0.39064853]